[Event "Portuguese Chess-ch 2022"]
[Site "Leiria"]
[Date "2022.09.13"]
[Round "2.4"]
[White "Fernandes, Antonio"]
[Black "Veiga, Jose Francisco R P N"]
[Result "0-1"]
[ECO "C68"]
[WhiteElo "2327"]
[BlackElo "2389"]
[Annotator "TA"]
[PlyCount "60"]
[EventDate "2022.09.11"]
[EventCountry "POR"]
[SourceTitle "playchess.com"]
[Source "ChessBase"]
[SourceQuality "1"]
[TimeControl "5400+30"]

{[%evp 9,60,10,30,-12,-19,-11,-17,-49,-43,-48,-35,-32,-38,-55,-55,-59,-60,-49,-47,-50,-46,-35,-30,-58,-56,-53,-40,-54,-14,-45,-37,-37,-43,-97,-55,-56,-55,-91,-29,-38,0,-515,-503,-477,-466,-515,-509,-490,-473,-476,-447,-773,-637]} 1. e4 {[%emt 0:18:10] Donev,I} e5 {[%emt 0:00:37]} 2. Nf3 {[%emt 0:01:01]} Nc6 {[%emt 0:00:29]} 3. Bb5 {[%emt 0:00:12]} a6 {[%emt 0:00:41]} 4. Bxc6 {[%emt 0:00:57]} dxc6 {[%emt 0:00:20][%cal Bd7c6,Bc6c5][%mdl 32]} 5. O-O {[%emt 0:00:09]} Ne7 {[%emt 0:00:56]} 6. Na3 {[%emt 0:17:30] C68: Ruy Lopez: Exchange Variation, sidelines.} (6. Nxe5 {looks sharper.} Qd4 7. Qh5 g6 8. Nf3) 6... f6 {[%emt 0:07:36] [#]} 7. d4 $146 {[%emt 0:03:29]} ({Predecessor:} 7. Nc4 c5 8. d3 Bg4 9. Ne3 Bh5 10. c3 Nc6 11. Nf5 Qd7 12. Qe2 O-O-O 13. Rd1 c4 {0-1 (30) Torre,E (2545)-Almasi,Z (2650) Elista 1998 CBM 068 [Donev,I]}) 7... exd4 {[%emt 0:05:58]} 8. Qxd4 {[%emt 0:02:41] The position is equal.} Qxd4 {[%emt 0:01:34]} 9. Nxd4 {[%emt 0:00:02]} c5 {[%emt 0:02:24]} 10. Ne2 {[%emt 0:01:51]} Bd7 {[%emt 0:04:23][%cal Bc8d7,Bd7f5,Bf5g6][%mdl 32]} 11. Nf4 {[%emt 0:01:41]} O-O-O {[%emt 0:03:56]} 12. Be3 {[%emt 0:05:50]} Ng6 {[%emt 0:04:45]} 13. Rad1 {[%emt 0:13:18]} Re8 {[%emt 0:16:37]} 14. f3 {[%emt 0:01:16]} f5 {[%emt 0:04:25]} 15. exf5 $1 {[%emt 0:01:44]} Bxf5 {[%emt 0:02:51]} 16. Nxg6 {[%emt 0:00:56]} Bxg6 {[%emt 0:00:08]} 17. Bf4 {[%emt 0:00:12]} b5 {[%emt 0:02:51]} 18. c4 {[%emt 0:03:31]} c6 {[%emt 0:07:10]} (18... b4 $5 {[%cal Rb4a3]} 19. Nb1 Be7 $11) 19. b3 {[%emt 0:10:34]} Be7 {[%emt 0:06:03][%cal Bf8e7,Be7f6,Bf6d4][%mdl 32] Threatens to win with ...Bf6.} 20. Be3 {[%emt 0:01:24]} Rd8 {[%emt 0:02:41][%cal Be8d8,Bd8d3,Bd3d2][%mdl 32]} 21. Rc1 {[%emt 0:03:12]} (21. Nb1 $15) 21... Kb7 {[%emt 0:07:41]} 22. Nb1 {[%emt 0:02:52]} Rd3 {[%emt 0:05:11]} 23. Kf2 {[%emt 0:00:12] [#]} Kb6 {[%emt 0:04:18] Black is more active.} (23... Re8 $1 $17 {Strongly threatening ...Bh4+.} 24. cxb5 Bh4+ 25. g3 Rexe3 26. bxc6+ Kxc6 27. gxh4 Rxf3+ 28. Kg2 Rxf1 29. Rxf1 Be4+ 30. Kg1 a5) 24. Nd2 $11 {[%emt 0:05:05]} Bf6 {[%emt 0:01:26]} 25. b4 $2 {[%emt 0:02:24][%mdl 8192] [#]} (25. cxb5 $11 {and White has nothing to worry.} axb5 26. Bxc5+ Kc7 27. Ne4) 25... Bd4 $1 $19 {[%emt 0:01:13] This bishop pair is nice. Black is clearly winning.} 26. bxc5+ {[%emt 0:00:14]} Kb7 {[%emt 0:00:14]} 27. Rfe1 {[%emt 0:02:51]} Rxd2+ {[%emt 0:00:37]} 28. Kg3 {[%emt 0:00:01]} Bxe3 {[%emt 0:00:30]} 29. Rxe3 {[%emt 0:00:02]} Rhd8 {[%emt 0:00:56]} 30. a4 {[%emt 0:01:37]} (30. a3 $142) 30... bxa4 {[%emt 0:01:16] Weighted Error Value: White=0.53/Black=0.11 (very precise)} 0-1

[Event "Portuguese Chess-ch 2022"]
[Site "Leiria"]
[Date "2022.09.13"]
[Round "2.5"]
[White "Fidalgo, Andre"]
[Black "Martins, Bruno Andre Leite"]
[Result "0-1"]
[ECO "C11"]
[WhiteElo "2258"]
[BlackElo "2308"]
[Annotator "TA"]
[PlyCount "100"]
[EventDate "2022.09.11"]
[EventCountry "POR"]
[SourceTitle "playchess.com"]
[Source "ChessBase"]
[SourceQuality "1"]
[TimeControl "5400+30"]

{[%evp 17,100,-9,53,-28,0,-19,5,-12,45,-38,0,-66,-70,-60,-40,-49,-29,-85,-62,-62,-32,-52,-54,-56,-52,-49,-18,-35,0,0,0,0,0,-14,-5,-16,-21,-58,-58,-145,-140,-123,-3,-128,0,-33,0,-76,-79,-122,-127,-212,-214,-208,-213,-331,-328,-346,-354,-347,-245,-2760,-2396,-2049,-1988,-1662,-1621,-1060,-353,-373,-372,-358,-340,-882,-829,-1601,-1221,-29989,-29983,-29985,-29986,-29987,-29988,-29991,-29992]} 1. e4 {[%emt 0:00:18]} e6 {[%emt 0:06:13]} 2. d4 {[%emt 0:00:21]} d5 {[%emt 0:00:01]} 3. Nc3 {[%emt 0:00:16]} Nf6 {[%emt 0:00:07]} 4. e5 {[%emt 0:00:29]} Nfd7 {[%emt 0:00:06]} 5. f4 {[%emt 0:00:26]} c5 {[%emt 0:00:06]} 6. Nf3 {[%emt 0:00:11]} Nc6 {[%emt 0:00:04]} 7. Be3 {[%emt 0:00:06]} a6 {[%emt 0:05:14]} 8. Qd2 {[%emt 0:02:57]} b5 {[%emt 0:00:06]} 9. dxc5 {[%emt 0:04:08]} Nxc5 {[%emt 0:03:53]} (9... Bxc5 $11 10. a3 Qb6) 10. O-O-O {[%emt 0:07:29] C11: French: Classical System: 4 e5 and 4 Bg5 dxe4.} (10. Qf2 $14 Nd7 11. Be2) 10... Be7 {[%emt 0:06:50]} 11. Kb1 {[%emt 0:12:55]} Rb8 {[%emt 0:03:41] [#]} 12. h4 $146 {[%emt 0:12:20] The position is equal.} ({Predecessor:} 12. g4 b4 13. Bxc5 Bxc5 14. Na4 Ba7 15. Bd3 Bd7 16. b3 a5 17. f5 Qc7 18. Qg5 {½-½ (70) Kinez,I (2141)-Dezelic,D Zagreb 2011}) 12... O-O {[%emt 0:07:25]} (12... b4 $11 13. Ne2 O-O) 13. h5 {[%emt 0:00:32]} ({White should play} 13. Bxc5 $14 Bxc5 14. Ne2) 13... Qc7 {[%emt 0:07:38]} (13... b4 $5 {[%cal Rb4c3]} 14. Ne2 h6 $11) 14. Qe1 {[%emt 0:15:23]} (14. Bxc5 $11 Bxc5 15. h6) 14... b4 $1 $15 {[%emt 0:08:37]} 15. Ne2 {[%emt 0:00:11][%cal Of4f5]} a5 {[%emt 0:03:23]} 16. Ned4 {[%emt 0:07:24]} Nxd4 {[%emt 0:01:24]} 17. Nxd4 {[%emt 0:00:55]} (17. Bxd4 $11 a4 18. h6) 17... Bd7 {[%emt 0:00:31]} 18. Bd3 {[%emt 0:16:22]} f6 {[%emt 0:10:00]} 19. Qh4 {[%emt 0:05:25][%cal Od3g6]} Nxd3 {[%emt 0:10:10]} 20. cxd3 {[%emt 0:03:30][%cal Of4f5]} Rbe8 {[%emt 0:02:51]} 21. Qg3 {[%emt 0:00:28]} fxe5 {[%emt 0:02:56]} 22. fxe5 {[%emt 0:00:08]} Rf7 {[%emt 0:03:03]} 23. Rhf1 {[%emt 0:01:07] Hoping for Rxf7.} Ref8 {[%emt 0:02:28]} 24. Rxf7 {[%emt 0:00:09]} Rxf7 {[%emt 0:00:25]} 25. Rc1 {[%emt 0:00:06]} Qb7 {[%emt 0:02:08]} 26. Bg5 {[%emt 0:06:15]} (26. Kc2 {is more complex.} Bc5 27. Nb3 Bf8 28. Nd4) 26... Bf8 {[%emt 0:03:30]} 27. Qh3 {[%emt 0:03:28]} Qb6 {[%emt 0:01:18]} 28. Be3 {[%emt 0:00:05]} ({Better is} 28. Qg4 $1 $15) 28... Bc5 $36 {[%emt 0:03:59][%mdl 2048] White is under strong pressure.} 29. Qg4 {[%emt 0:00:24]} Qa7 {[%emt 0:03:00]} (29... h6 $17 30. Bg1 a4) 30. Nc6 {[%emt 0:00:55] [#]} Bxc6 {[%emt 0:00:44]} (30... Qa6 $1 $17 {[%cal Ra6d3]} 31. Bxc5 Qxd3+ 32. Ka1 Bxc6) 31. Bxc5 {[%emt 0:00:17]} Qd7 {[%emt 0:00:43]} (31... Qa6 $5 {[%cal Ra6d3]}) 32. Bd6 {[%emt 0:00:25] [#]} (32. h6 $11 {remains equal.}) 32... h6 $1 {[%emt 0:01:31] White is on the road to losing.} 33. Qd4 {[%emt 0:00:53]} Bb5 {[%emt 0:00:59]} 34. Rc7 {[%emt 0:00:26] [#]} (34. Ka1 $17 {is a better defense.}) 34... Qe8 $1 $19 {[%emt 0:00:56] And now ...Rf1+ would win.} (34... Rf1+ 35. Kc2 Qd8 36. Qg4 $11) 35. Rc1 {[%emt 0:00:26]} Rf5 {[%emt 0:00:55]} 36. a4 {[%emt 0:00:47]} (36. Bc7 $142) 36... Bxa4 {[%emt 0:00:57] Strongly threatening ...Bb3.} 37. g4 {[%emt 0:00:16]} Rf3 {[%emt 0:00:22]} 38. Qb6 {[%emt 0:00:15]} Qb5 {[%emt 0:00:38]} ({Not} 38... Rxd3 $2 39. Qa6 Bb5 40. Rc8 Bxa6 41. Rxe8+ Kh7 42. Rxe6) 39. Qd8+ $2 {[%emt 0:00:58]} (39. Qxb5 Bxb5 40. Rc5 Bxd3+ 41. Kc1) 39... Kh7 {[%emt 0:00:14][%cal Oa4c2]} 40. g5 {[%emt 0:00:00]} hxg5 {[%emt 0:00:00]} 41. Qxg5 {[%emt 0:00:00]} Qxd3+ {[%emt 0:00:00]} 42. Ka1 {[%emt 0:00:00]} Qf5 $2 {[%emt 0:00:00]} (42... Rg3 43. Qf4 Rg2) 43. Qg2 {[%emt 0:00:00]} Rf2 {[%emt 0:00:00]} 44. Qg1 {[%emt 0:00:00]} Be8 {[%emt 0:00:00]} 45. Bc7 $2 {[%emt 0:00:00]} (45. Bc5 Rf3 46. Be3) 45... b3 {[%emt 0:00:00]} 46. h6 {[%emt 0:00:00]} gxh6 {[%emt 0:00:00] ( -> ...Rf4)} 47. Bxa5 {[%emt 0:00:00]} Rf4 {[%emt 0:00:00][%cal Rf4a4] Black mates.} 48. Bb4 {[%emt 0:00:00]} Rxb4 {[%emt 0:00:00][%cal Rb4a4]} 49. Rc4 {[%emt 0:00:00]} Qf8 {[%emt 0:01:03]} ({And not} 49... Rxc4 50. Qg8+ Kxg8 $11) 50. Rc7+ {[%emt 0:00:00]} Kh8 {[%emt 0:00:39] Weighted Error Value: White=0.80/Black=0.37} 0-1

[Event "Portuguese Chess-ch 2022"]
[Site "Leiria"]
[Date "2022.09.14"]
[Round "3.2"]
[White "Veiga, Jose Francisco R P N"]
[Black "Fidalgo, Andre"]
[Result "1-0"]
[ECO "C50"]
[WhiteElo "2389"]
[BlackElo "2258"]
[Annotator "RC"]
[PlyCount "155"]
[EventDate "2022.09.11"]
[EventCountry "POR"]
[SourceTitle "playchess.com"]
[Source "ChessBase"]
[SourceQuality "1"]
[TimeControl "5400+30"]

1. e4 {[%emt 0:09:27]} e5 {[%emt 0:00:50]} 2. Nf3 {[%emt 0:01:50]} Nc6 {[%emt 0:00:09]} 3. Bc4 {[%emt 0:00:56]} Bc5 {[%emt 0:00:16]} 4. O-O {[%emt 0:00:37]} Nf6 {[%emt 0:00:10]} 5. d3 {[%emt 0:00:12]} O-O {[%emt 0:00:10]} 6. Nbd2 {[%emt 0:02:14]} d6 {[%emt 0:07:44]} 7. c3 {[%emt 0:00:57]} a6 {[%emt 0:00:59]} 8. Bb3 {[%emt 0:00:40]} Ba7 {[%emt 0:00:38]} 9. h3 {[%emt 0:01:04]} Ne7 {[%emt 0:03:57]} 10. Re1 {[%emt 0:00:49]} Ng6 {[%emt 0:03:34]} 11. Nf1 {[%emt 0:00:15]} h6 {[%emt 0:03:51]} 12. Ng3 {[%emt 0:00:23]} Re8 {[%emt 0:11:28]} 13. d4 {[%emt 0:01:01]} Be6 {[%emt 0:00:16]} 14. Bc2 {[%emt 0:00:37]} b5 {[%emt 0:08:37]} 15. Be3 {[%emt 0:02:17]} c5 {[%emt 0:02:31]} 16. Qd2 {[%emt 0:03:43]} Qc7 {[%emt 0:02:44]} 17. a4 {[%emt 0:17:06]} Bb6 {[%emt 0:07:45]} 18. Bd3 {[%emt 0:08:29]} exd4 {[%emt 0:08:13]} 19. cxd4 {[%emt 0:07:22]} Ba5 {[%emt 0:00:23]} 20. Qc2 {[%emt 0:00:27]} Bxe1 {[%emt 0:00:08]} 21. Rxe1 {[%emt 0:00:15]} c4 {[%emt 0:01:06]} 22. Bf1 {[%emt 0:01:38]} Rac8 {[%emt 0:05:08]} 23. axb5 {[%emt 0:01:01]} axb5 {[%emt 0:00:08]} 24. d5 {[%emt 0:00:16]} Bd7 {[%emt 0:00:35]} 25. Bd4 {[%emt 0:03:50]} Ne5 {[%emt 0:06:40]} 26. Nd2 {[%emt 0:01:07]} Qd8 {[%emt 0:02:08]} 27. Ra1 {[%emt 0:01:01]} Rb8 {[%emt 0:02:23]} 28. Ra7 {[%emt 0:01:15]} Bc8 {[%emt 0:01:39]} 29. Qc3 {[%emt 0:04:34]} Re7 {[%emt 0:03:07]} 30. Ra1 {[%emt 0:00:48]} Re8 {[%emt 0:00:22]} 31. f4 {[%emt 0:01:41]} Ng6 {[%emt 0:02:18]} 32. Qf3 {[%emt 0:05:08]} Nf8 {[%emt 0:04:55]} 33. Qf2 {[%emt 0:02:27]} N8d7 {[%emt 0:02:07]} 34. Nf5 {[%emt 0:05:40]} Nf8 {[%emt 0:00:56]} 35. Ng3 {[%emt 0:07:08]} N8d7 {[%emt 0:00:09]} 36. Be2 {[%emt 0:01:06]} Nc5 {[%emt 0:02:45]} 37. Bxc5 {[%emt 0:00:36]} dxc5 {[%emt 0:00:06]} 38. Qxc5 {[%emt 0:00:04]} Qb6 {[%emt 0:02:49]} 39. Qxb6 {[%emt 0:00:05]} Rxb6 {[%emt 0:00:05]} 40. Bf3 {[%emt 0:00:00]} Nd7 {[%emt 0:00:00]} 41. e5 {[%emt 0:00:00]} Nc5 {[%emt 0:00:00]} 42. Ne2 {[%emt 0:00:00]} Nd3 {[%emt 0:00:00]} 43. Rb1 {[%emt 0:00:12]} Kf8 {[%emt 0:00:00]} 44. g3 {[%emt 0:01:19]} g5 {[%emt 0:00:00]} 45. Be4 {[%emt 0:01:25]} gxf4 {[%emt 0:00:00]} 46. gxf4 {[%emt 0:00:05]} Nc5 {[%emt 0:00:00]} 47. Nd4 {[%emt 0:00:59]} Bxh3 {[%emt 0:00:00]} 48. Kf2 {[%emt 0:00:48]} Rd8 {[%emt 0:00:00]} 49. d6 {[%emt 0:00:51]} h5 {[%emt 0:00:39]} 50. Ke3 {[%emt 0:02:21]} f6 {[%emt 0:07:59]} 51. Rh1 {[%emt 0:02:28]} Bg4 {[%emt 0:00:05]} 52. Bg6 {[%emt 0:00:03]} fxe5 {[%emt 0:01:37]} 53. fxe5 {[%emt 0:00:17]} Nd7 {[%emt 0:00:13]} 54. N2f3 {[%emt 0:02:39]} Bxf3 {[%emt 0:01:27]} 55. Nxf3 {[%emt 0:00:09]} Nxe5 {[%emt 0:00:14]} 56. Nxe5 {[%emt 0:00:14]} Rdxd6 {[%emt 0:00:41]} 57. Bxh5 {[%emt 0:00:47]} Re6 {[%emt 0:00:43]} 58. Ke4 {[%emt 0:00:48]} Ke7 {[%emt 0:01:16]} 59. Rg1 {[%emt 0:01:07]} Kd6 {[%emt 0:00:36]} 60. Rd1+ {[%emt 0:01:26]} Kc5 {[%emt 0:00:06]} 61. Bg4 {[%emt 0:00:36]} Re7 {[%emt 0:00:47]} 62. Rd7 {[%emt 0:00:32]} Re8 {[%emt 0:00:30]} 63. Rd5+ {[%emt 0:00:52]} Kb4 {[%emt 0:00:06]} 64. Kd4 {[%emt 0:00:30]} Kb3 {[%emt 0:00:53]} 65. Bd7 {[%emt 0:00:01]} Rd8 {[%emt 0:00:19]} 66. Kc5 {[%emt 0:00:56]} Rb7 {[%emt 0:00:21]} 67. Kc6 {[%emt 0:01:05]} Rbxd7 {[%emt 0:00:56]} 68. Rxb5+ {[%emt 0:00:23]} Kc2 {[%emt 0:00:07]} 69. Nxd7 {[%emt 0:00:04]} c3 {[%emt 0:00:11]} 70. bxc3 {[%emt 0:00:44]} Kxc3 {[%emt 0:00:06]} 71. Nb6 {[%emt 0:00:15]} Kd4 {[%emt 0:00:34]} 72. Rb4+ {[%emt 0:00:22]} Kc3 {[%emt 0:01:07]} 73. Kc5 {[%emt 0:00:01]} Kd3 {[%emt 0:00:28]} 74. Rb3+ {[%emt 0:00:51]} Ke4 {[%emt 0:00:11]} 75. Rb1 {[%emt 0:00:16]} Ke3 {[%emt 0:01:18]} 76. Nd5+ {[%emt 0:00:25]} Ke4 {[%emt 0:00:26]} 77. Re1+ {[%emt 0:00:09]} Kd3 {[%emt 0:00:23]} 78. Rd1+ {[%emt 0:00:07]} 1-0

[Event "Portuguese Chess-ch 2022"]
[Site "Leiria"]
[Date "2022.09.14"]
[Round "3.3"]
[White "Sousa, Andre"]
[Black "Fernandes, Antonio"]
[Result "1/2-1/2"]
[ECO "E06"]
[WhiteElo "2449"]
[BlackElo "2327"]
[Annotator "RC"]
[PlyCount "143"]
[EventDate "2022.09.11"]
[EventCountry "POR"]
[SourceTitle "playchess.com"]
[Source "ChessBase"]
[SourceQuality "1"]
[TimeControl "5400+30"]

1. Nf3 d5 2. d4 Nf6 3. c4 e6 4. g3 Be7 5. Bg2 O-O 6. O-O dxc4 7. Qc2 Nc6 8. Qxc4 Qd5 9. Qd3 Qf5 10. Qxf5 exf5 11. Nc3 Nb4 12. Bg5 Be6 13. Ne5 c6 14. a3 Nbd5 15. Nxd5 Nxd5 16. Bxe7 Nxe7 17. Rfc1 Rfd8 18. e3 Bd5 19. Rc3 Bxg2 20. Kxg2 Nc8 21. Rb3 Nd6 22. Rc1 Rac8 23. Nc4 Nxc4 24. Rxc4 Rd7 25. Rb5 g6 26. Ra5 Ra8 27. b4 a6 28. a4 Rad8 29. Rac5 Rd5 30. Kf3 Kf8 31. Ke2 Ke7 32. Rc2 h5 33. h4 R8d6 34. Kd3 Kd7 35. Ke2 Ke7 36. Kf3 Ke6 37. Kf4 f6 38. Kf3 Kd7 39. Ke2 Ke6 40. Rc1 Kd7 41. Kd3 Ke6 42. R1c2 Kd7 43. Rb2 Ke6 44. Rc4 Rd8 45. f3 Ke7 46. Re2 R5d6 47. Rg2 Rd5 48. Rc5 Ke6 49. Rgc2 Ke7 50. Rxd5 Rxd5 51. Rc5 Rd8 52. b5 axb5 53. axb5 Rd5 54. Kc4 Kd6 55. bxc6 Rxc5+ 56. dxc5+ Kxc6 57. Kd4 Kc7 58. Kd5 Kd7 59. Kd4 Kc7 60. Kc4 Kc6 61. e4 fxe4 62. fxe4 Kd7 63. Kd5 g5 64. Kc4 gxh4 65. gxh4 Kc6 66. Kd4 Kc7 67. Kd5 Kd7 68. Kc4 Kc6 69. Kd4 Kc7 70. Kd5 Kd7 71. Kc4 Kc6 72. Kd4 1/2-1/2

[Event "Portuguese Chess-ch 2022"]
[Site "Leiria"]
[Date "2022.09.14"]
[Round "3.4"]
[White "Dias, Paulo"]
[Black "Rocha, Sergio"]
[Result "1-0"]
[ECO "E21"]
[WhiteElo "2341"]
[BlackElo "2324"]
[Annotator "RC"]
[PlyCount "33"]
[EventDate "2022.09.11"]
[EventCountry "POR"]
[SourceTitle "playchess.com"]
[Source "ChessBase"]
[SourceQuality "1"]
[TimeControl "5400+30"]

1. d4 {[%emt 0:02:00]} Nf6 {[%emt 0:00:08]} 2. c4 {[%emt 0:00:13]} e6 {[%emt 0:00:11]} 3. Nc3 {[%emt 0:00:24]} Bb4 {[%emt 0:00:10]} 4. Nf3 {[%emt 0:00:29]} O-O {[%emt 0:00:19]} 5. Bg5 {[%emt 0:00:47]} h6 {[%emt 0:00:15]} 6. Bh4 {[%emt 0:01:39]} Bxc3+ {[%emt 0:02:38]} 7. bxc3 {[%emt 0:00:42]} d6 {[%emt 0:00:10]} 8. e4 {[%emt 0:08:01]} Nc6 {[%emt 0:00:51]} 9. Bd3 {[%emt 0:17:19]} e5 {[%emt 0:00:39]} 10. h3 {[%emt 0:02:49]} Re8 {[%emt 0:03:19]} 11. O-O {[%emt 0:03:01]} Bf5 {[%emt 0:11:32]} 12. exf5 {[%emt 0:10:54]} e4 {[%emt 0:03:08]} 13. Nh2 {[%emt 0:03:15]} exd3 {[%emt 0:00:09]} 14. Ng4 {[%emt 0:00:54]} Qd7 {[%emt 0:01:54]} 15. Bxf6 {[%emt 0:10:12]} h5 {[%emt 0:00:06]} 16. Ne3 {[%emt 0:03:10]} gxf6 {[%emt 0:00:06]} 17. Qxh5 {[%emt 0:00:36]} 1-0

[Event "Portuguese Chess-ch 2022"]
[Site "Leiria"]
[Date "2022.09.14"]
[Round "3.5"]
[White "Guilherme Santos, Jose"]
[Black "Rego, Pedro Filipe"]
[Result "1/2-1/2"]
[ECO "D40"]
[WhiteElo "2384"]
[BlackElo "2273"]
[Annotator "RC"]
[PlyCount "57"]
[EventDate "2022.09.11"]
[EventCountry "POR"]
[SourceTitle "playchess.com"]
[Source "ChessBase"]
[SourceQuality "1"]
[TimeControl "5400+30"]

1. d4 {[%emt 0:04:50]} Nf6 {[%emt 0:00:10]} 2. c4 {[%emt 0:00:05]} e6 {[%emt 0:00:12]} 3. Nf3 {[%emt 0:00:06]} d5 {[%emt 0:00:26]} 4. Nc3 {[%emt 0:00:06]} c5 {[%emt 0:00:06]} 5. e3 {[%emt 0:01:58]} Nc6 {[%emt 0:01:33]} 6. a3 {[%emt 0:06:24]} dxc4 {[%emt 0:02:37]} 7. Bxc4 {[%emt 0:00:22]} a6 {[%emt 0:00:12]} 8. O-O {[%emt 0:01:02]} b5 {[%emt 0:07:46]} 9. Ba2 {[%emt 0:00:09]} Bb7 {[%emt 0:01:55]} 10. Qe2 {[%emt 0:04:55]} cxd4 {[%emt 0:02:49]} 11. Rd1 {[%emt 0:05:13]} Be7 {[%emt 0:05:37]} 12. exd4 {[%emt 0:02:18]} O-O {[%emt 0:23:54]} 13. Bg5 {[%emt 0:07:59]} Re8 {[%emt 0:02:48]} 14. Bxf6 {[%emt 0:09:50]} Bxf6 {[%emt 0:00:35]} 15. Ne4 {[%emt 0:00:06]} Na5 {[%emt 0:03:57]} 16. Rac1 {[%emt 0:02:15]} Bd5 {[%emt 0:01:19]} 17. Bxd5 {[%emt 0:09:08]} exd5 {[%emt 0:00:05]} 18. Nxf6+ {[%emt 0:00:07]} Qxf6 {[%emt 0:00:04]} 19. Qc2 {[%emt 0:00:06]} Nc4 {[%emt 0:04:01]} 20. b3 {[%emt 0:09:12]} Nxa3 {[%emt 0:00:05]} 21. Qc5 {[%emt 0:00:05]} b4 {[%emt 0:00:06]} 22. Qxb4 {[%emt 0:03:08]} Nb5 {[%emt 0:00:26]} 23. Rc5 {[%emt 0:07:05]} Rad8 {[%emt 0:00:50]} 24. Rdc1 {[%emt 0:00:34]} h6 {[%emt 0:05:57]} 25. h3 {[%emt 0:00:44]} Re4 {[%emt 0:00:52]} 26. Rc6 {[%emt 0:07:33]} Nxd4 {[%emt 0:03:07]} 27. Nxd4 {[%emt 0:00:08]} Qxd4 {[%emt 0:00:05]} 28. Qxd4 {[%emt 0:00:06]} Rxd4 {[%emt 0:00:08]} 29. Rxa6 {[%emt 0:00:04]} 1/2-1/2

[Event "Portuguese Chess-ch 2022"]
[Site "Leiria"]
[Date "2022.09.15"]
[Round "4.2"]
[White "Rocha, Sergio"]
[Black "Guilherme Santos, Jose"]
[Result "1/2-1/2"]
[ECO "A04"]
[WhiteElo "2324"]
[BlackElo "2384"]
[Annotator "ChessBase"]
[PlyCount "99"]
[EventDate "2022.09.11"]
[EventCountry "POR"]
[SourceTitle "playchess.com"]
[Source "ChessBase"]
[SourceQuality "1"]
[TimeControl "5400+30"]

1. Nf3 {[%emt 0:00:51]} c5 {[%emt 0:00:10]} 2. g3 {[%emt 0:00:13]} g6 {[%emt 0:00:17]} 3. Bg2 {[%emt 0:00:06]} Bg7 {[%emt 0:00:06]} 4. O-O {[%emt 0:00:07]} Nf6 {[%emt 0:00:04]} 5. d3 {[%emt 0:00:06]} O-O {[%emt 0:00:34]} 6. c3 {[%emt 0:00:06]} Nc6 {[%emt 0:00:33]} 7. a3 {[%emt 0:00:04]} b6 {[%emt 0:08:05]} 8. b4 {[%emt 0:00:19]} Bb7 {[%emt 0:00:14]} 9. Qb3 {[%emt 0:01:12]} d6 {[%emt 0:05:11]} 10. Nbd2 {[%emt 0:00:12]} Qd7 {[%emt 0:03:13]} 11. Bb2 {[%emt 0:00:27]} Rab8 {[%emt 0:08:25]} 12. d4 {[%emt 0:09:15]} e6 {[%emt 0:12:14]} 13. Rfd1 {[%emt 0:01:24]} Qc7 {[%emt 0:12:59]} 14. Rac1 {[%emt 0:02:11]} Ne7 {[%emt 0:02:39]} 15. c4 {[%emt 0:01:43]} Nf5 {[%emt 0:04:31]} 16. dxc5 {[%emt 0:06:38]} bxc5 {[%emt 0:01:10]} 17. b5 {[%emt 0:00:09]} Qe7 {[%emt 0:02:38]} 18. a4 {[%emt 0:04:26]} Rfd8 {[%emt 0:01:47]} 19. Qc2 {[%emt 0:03:18]} Rbc8 {[%emt 0:03:08]} 20. e3 {[%emt 0:17:49]} h6 {[%emt 0:06:59]} 21. Nb3 {[%emt 0:04:31]} Be4 {[%emt 0:06:46]} 22. Qe2 {[%emt 0:00:23]} Qb7 {[%emt 0:01:52]} 23. Nbd2 {[%emt 0:04:58]} Bxf3 {[%emt 0:04:47]} 24. Nxf3 {[%emt 0:01:11]} Ne7 {[%emt 0:01:28]} 25. Bc3 {[%emt 0:02:34]} Qc7 {[%emt 0:00:54]} 26. h4 {[%emt 0:02:37]} Ne4 {[%emt 0:04:18]} 27. Bxg7 {[%emt 0:02:05]} Kxg7 {[%emt 0:00:04]} 28. Qb2+ {[%emt 0:00:52]} f6 {[%emt 0:01:16]} 29. h5 {[%emt 0:06:09]} gxh5 {[%emt 0:01:37]} 30. Nh4 {[%emt 0:00:32]} d5 {[%emt 0:01:10]} 31. Qe2 {[%emt 0:02:08]} f5 {[%emt 0:01:54]} 32. cxd5 {[%emt 0:02:48]} exd5 {[%emt 0:00:06]} 33. Qxh5 {[%emt 0:07:38]} Qe5 {[%emt 0:00:02]} 34. Bxe4 {[%emt 0:06:52]} Qxe4 {[%emt 0:00:15]} 35. a5 {[%emt 0:01:30]} Qg4 {[%emt 0:00:44]} 36. Qxg4+ {[%emt 0:00:55]} fxg4 {[%emt 0:00:03]} 37. b6 {[%emt 0:00:33]} axb6 {[%emt 0:00:05]} 38. axb6 {[%emt 0:00:03]} Rc6 {[%emt 0:02:10]} 39. Rd2 {[%emt 0:01:20]} Rb8 {[%emt 0:01:20]} 40. Rdc2 {[%emt 0:00:00]} c4 {[%emt 0:00:00]} 41. e4 {[%emt 0:00:00]} Rbxb6 {[%emt 0:00:00]} 42. exd5 {[%emt 0:00:00]} Nxd5 {[%emt 0:00:00]} 43. Rxc4 {[%emt 0:00:00]} Rxc4 {[%emt 0:00:00]} 44. Rxc4 {[%emt 0:00:00]} h5 {[%emt 0:00:00]} 45. Rc5 {[%emt 0:00:00]} Nf6 {[%emt 0:00:00]} 46. Rc7+ {[%emt 0:00:00]} Kh6 {[%emt 0:00:00]} 47. Nf5+ {[%emt 0:00:00]} Kg6 {[%emt 0:00:00]} 48. Nh4+ {[%emt 0:00:00]} Kh6 {[%emt 0:00:00]} 49. Nf5+ {[%emt 0:00:00]} Kg6 {[%emt 0:00:00]} 50. Nh4+ 1/2-1/2

[Event "Portuguese Chess-ch 2022"]
[Site "Leiria"]
[Date "2022.09.15"]
[Round "4.3"]
[White "Fernandes, Antonio"]
[Black "Dias, Paulo"]
[Result "1/2-1/2"]
[ECO "A40"]
[WhiteElo "2327"]
[BlackElo "2341"]
[Annotator "ChessBase"]
[PlyCount "76"]
[EventDate "2022.09.11"]
[EventCountry "POR"]
[SourceTitle "playchess.com"]
[Source "ChessBase"]
[SourceQuality "1"]
[TimeControl "5400+30"]

1. d4 e6 2. Nf3 d5 3. g3 Nf6 4. Bg2 c5 5. O-O cxd4 6. Nxd4 e5 7. Nb5 a6 8. N5c3 d4 9. Ne4 Nxe4 10. Bxe4 Nc6 11. c3 Bh3 12. Re1 Bc5 13. cxd4 exd4 14. e3 dxe3 15. Bxc6+ bxc6 16. Qh5 Qf6 17. Bxe3 Bxe3 18. Rxe3+ Be6 19. Nc3 O-O 20. Rae1 Rfd8 21. b3 h6 22. Qc5 Bh3 23. Qh5 Be6 24. Ne4 Qd4 25. Qc5 Qxc5 26. Nxc5 Bh3 27. f3 Rd5 28. Ne4 Bf5 29. Kf2 a5 30. g4 Bxe4 31. Rxe4 f5 32. gxf5 Rxf5 33. Rc1 Rd8 34. Rc2 Rd3 35. Re3 Rd6 36. Re4 Rd3 37. Re3 Rd6 38. Re4 Rd3 1/2-1/2